bitfinex-derivatives/quotes_ETHF0:USTF0_20250828
["timestamp","ask_amount","ask_price","bid_price","bid_amount"]
[1756400493090,2.04611,4474.0,4473.7,32.183]
[1756400493398,1.8226,4473.7,4472.1,32.184]
[1756400493589,3.2078,4473.3,4473.2,0.40234]
[1756400493897,1.8226,4474.0,4473.6,0.40231]
[1756400494091,0.59134954,4473.9,4472.9,0.9722]
[1756400494292,3.2078,4474.1,4473.7,0.40229]
[1756400494497,0.59153783,4474.0,4473.6,0.4023]
[1756400494693,1.8226,4474.0,4473.3,0.40233]
[1756400494894,0.5914729,4473.9,4473.3,0.40233]
[1756400495088,1.8226,4473.7,4473.3,0.40233]
[1756400495293,1.8226,4473.5,4473.4,0.40232]
[1756400495488,2.4140729,4473.5,4473.4,0.40232]
[1756400495690,1.8226,4474.0,4473.7,0.40229]
[1756400495891,1.98981,4473.7,4473.6,0.40231]
[1756400496102,2.57942966,4473.7,4473.5,0.40231]
[1756400496397,1.7663,4473.5,4472.8,0.9722]
[1756400496604,0.22351,4473.4,4473.3,0.40233]
[1756400496895,0.58961882,4473.4,4472.5,3.2078]
[1756400497100,1.7663,4473.5,4473.4,0.40232]
[1756400497497,1.98981,4473.5,4473.4,0.40232]
[1756400497803,0.22351,4473.5,4473.3,0.40233]
[1756400498104,1.7663,4473.4,4473.3,0.40233]
[1756400498305,3.2078,4473.6,4473.5,0.40232]
[1756400498908,3.2078,4473.6,4473.5,1.32202]
[1756400499103,3.2078,4474.2,4473.6,0.9197]
[1756400499402,3.2078,4474.8,4474.7,0.40221]
[1756400499602,4.02183758,4474.8,4474.7,0.40221]
[1756400499806,3.43131,4474.8,4474.1,0.9197]
[1756400499997,3.43131,4474.8,4474.6,0.40221]
[1756400500194,3.43131,4474.8,4474.1,0.9197]
[1756400500195,1.7663,4474.7,4474.1,0.9197]
[1756400500501,3.2078,4474.8,4474.4,0.40223]
[1756400500699,1.7663,4474.5,4474.4,0.40223]
[1756400500893,1.98981,4474.5,4474.2,0.40225]
[1756400501096,3.2078,4474.8,4473.9,1.00571]
[1756400501299,10.0457,4479.0,4474.9,1.92517]
[1756400501300,3.2078,4475.8,4474.9,1.92517]
[1756400501497,1.7663,4475.7,4475.6,0.40212]
[1756400501794,3.2078,4475.8,4475.7,0.9197]
[1756400501996,3.2078,4475.8,4475.6,0.40212]
[1756400502198,4.9741,4475.8,4475.6,0.40212]
[1756400502400,4.9741,4476.4,4476.3,0.40206]
[1756400502801,0.40204,4476.6,4475.0,3.2078]
[1756400502998,0.40204,4476.6,4474.7,1.92521]
[1756400502999,0.22351,4475.8,4475.1,40.8]
[1756400503198,3.2078,4476.2,4475.5,0.40213]
[1756400503199,0.22351,4475.7,4475.5,0.40213]
[1756400503700,4.9741,4476.2,4475.1,40.8]
[1756400503906,1.7663,4476.1,4475.6,0.40212]
[1756400504104,1.7663,4476.1,4475.2,0.9197]
[1756400504410,4.9741,4476.2,4475.2,0.9197]
[1756400504601,1.7663,4476.0,4475.9,0.4021]
[1756400504905,3.2078,4476.2,4476.1,0.40208]
[1756400505103,3.2078,4476.2,4476.1,1.32178]
[1756400505411,1.7663,4476.6,4476.4,0.40205]
[1756400505601,3.2078,4477.0,4476.2,0.9197]
[1756400505800,1.7663,4476.8,4476.3,0.40206]
[1756400505999,1.7663,4476.9,4476.6,0.40203]
[1756400506202,3.2078,4477.0,4476.7,0.40202]
[1756400506408,0.22351,4476.9,4476.7,0.40202]
[1756400506602,0.22351,4476.8,4476.3,0.40206]
[1756400506801,1.7663,4476.9,4476.0,3.2078]
[1756400507204,0.22351,4476.3,4476.0,3.2078]
[1756400507407,1.7663,4476.2,4476.0,3.60989]
[1756400507803,1.7663,4476.2,4476.0,0.40209]
[1756400507999,1.7663,4476.9,4476.0,0.40209]
[1756400508204,0.22351,4476.3,4476.1,0.40207]
[1756400508398,1.7663,4476.9,4476.1,0.40208]
[1756400508603,1.7663,4476.9,4476.0,0.40209]
[1756400508801,0.22351,4476.3,4476.1,0.40208]
[1756400509005,0.22351,4476.3,4476.2,0.9197]
[1756400509212,4.9741,4477.0,4475.9,0.40209]
[1756400509511,0.22351,4476.3,4476.0,0.40209]
[1756400509705,1.7663,4476.2,4476.1,0.40208]
[1756400509911,1.7663,4476.9,4475.7,0.9197]
[1756400510111,0.22351,4476.4,4476.2,0.40207]
[1756400510312,0.22351,4476.4,4476.3,0.9197]
[1756400510610,0.22351,4476.4,4475.7,1.0053]
[1756400510611,1.7663,4476.8,4476.6,0.40203]
[1756400510813,0.22351,4476.7,4476.6,0.40203]
[1756400511008,1.98981,4476.7,4476.6,0.40203]
[1756400511209,1.7663,4476.7,4476.6,0.40203]
[1756400511406,3.2078,4477.0,4475.8,3.2078]
[1756400511407,1.7663,4476.9,4475.9,1.00525]
[1756400511607,3.2078,4477.0,4475.8,3.2078]
[1756400511812,1.7663,4476.2,4475.8,3.2078]
[1756400512002,1.7663,4476.2,4476.1,0.40208]
[1756400512203,1.7663,4476.8,4476.7,0.40203]
[1756400512407,1.7663,4476.8,4476.6,0.40203]
[1756400512707,1.7663,4476.7,4476.6,0.40203]
[1756400512901,1.98981,4476.7,4476.6,0.40203]
[1756400513106,3.2078,4477.0,4476.3,0.9197]
[1756400513309,1.98981,4476.7,4476.3,0.9197]
[1756400513507,1.98981,4476.7,4476.6,0.40204]
[1756400513916,1.7663,4476.7,4476.6,0.40204]
[1756400514504,3.2078,4477.0,4476.8,0.40201]
[1756400514712,0.22351,4476.9,4476.8,0.40201]
[1756400515008,3.2078,4477.0,4476.8,0.40201]
[1756400515214,1.98981,4476.9,4476.8,0.40201]
[1756400515711,1.7663,4476.9,4476.8,0.40201]
[1756400516011,1.7663,4477.5,4477.4,0.40196]
[1756400516202,3.2078,4477.6,4477.4,0.40196]
[1756400516203,3.2078,4477.6,4477.5,0.9197]
[1756400516407,1.7663,4477.5,4476.9,0.9197]
[1756400516607,1.7663,4477.5,4476.2,4.1275]
[1756400516810,1.7663,4477.5,4475.8,1.00528]
[1756400517009,1.7663,4477.2,4476.0,1.00523]
[1756400517209,1.7663,4477.5,4476.7,0.9197]
[1756400517415,1.7663,4477.5,4477.4,0.40196]
[1756400517709,0.22351,4477.3,4477.2,0.40198]
[1756400517914,3.2078,4477.6,4477.5,0.40196]
[1756400518115,4.9741,4477.6,4477.0,0.9197]
[1756400518316,0.22351,4477.2,4476.7,3.2078]
[1756400518518,1.7663,4477.2,4477.0,0.9197]
[1756400518709,3.2078,4477.6,4477.4,0.40196]
[1756400518911,1.7663,4477.4,4476.7,3.2078]
[1756400519113,1.7663,4477.4,4477.3,0.40197]
[1756400519317,1.7663,4477.4,4476.8,0.9197]
[1756400519616,1.7663,4477.2,4477.1,0.40199]
[1756400519815,1.98981,4477.2,4477.1,0.40199]
[1756400520112,1.7663,4477.2,4477.1,0.40199]
[1756400520319,1.7663,4477.5,4476.3,0.9197]
[1756400520519,1.7663,4477.5,4476.5,1.00512]
[1756400520718,1.7663,4477.2,4476.1,40.8]
[1756400520920,3.2078,4477.1,4477.0,0.402]
[1756400521217,1.00463,4478.8,4476.6,1.0051]
[1756400521218,3.2078,4477.6,4477.3,0.40197]
[1756400521426,1.7663,4477.5,4476.5,1.0051]
[1756400521615,1.7663,4477.4,4477.3,0.40197]
[1756400521815,1.7663,4477.4,4476.2,1.00518]
[1756400522019,1.7663,4476.7,4476.6,0.40204]
[1756400522417,3.2078,4477.6,4477.5,0.40196]
[1756400522616,3.2078,4477.6,4477.4,0.40196]
[1756400522814,1.7663,4478.6,4477.5,0.9197]
[1756400523014,2.16817,4478.5,4477.5,0.40195]
[1756400523322,1.00443,4479.6,4477.5,0.40195]
[1756400523323,1.7663,4477.6,4477.5,0.40195]
[1756400523918,1.7663,4477.6,4477.2,4.1275]
[1756400523919,1.7663,4477.5,4477.2,3.2078]
[1756400524116,3.2078,4478.2,4477.2,3.2078]
[1756400524315,1.7663,4478.1,4478.0,0.40191]
[1756400524517,1.7663,4478.6,4478.4,0.40187]
[1756400524715,0.22351,4478.2,4478.1,0.4019]
[1756400524917,1.98981,4478.2,4478.1,0.4019]
[1756400525114,1.7663,4478.6,4477.7,44.0078]
[1756400525310,1.98981,4478.1,4477.8,0.40192]
[1756400525510,1.98981,4478.0,4477.8,0.40192]
[1756400525914,1.6051,4478.6,4477.7,4.0656]
[1756400526115,1.6051,4478.6,4477.7,3.2078]
[1756400526316,1.6051,4478.6,4478.1,1.86254]
[1756400526317,0.22351,4478.3,4478.1,1.86254]
[1756400526514,1.6051,4478.6,4478.5,0.40187]
[1756400527426,1.6051,4479.1,4478.2,4.0656]
[1756400527622,1.6051,4479.1,4478.9,0.40183]
[1756400527818,3.3078,4480.2,4479.4,0.40178]
[1756400528013,1.6051,4480.1,4479.5,0.40177]
[1756400528220,1.6051,4480.1,4479.5,1.86225]
[1756400528221,0.22351,4480.1,4479.5,1.86225]
[1756400528520,1.82861,4480.0,4479.8,0.40174]
[1756400528721,4.9129,4480.2,4480.1,0.40172]
[1756400529326,1.7051,4480.2,4480.1,0.40172]
[1756400529526,1.6051,4480.8,4480.1,0.8578]
[1756400529826,3.2078,4481.2,4480.9,0.40165]
[1756400530119,1.6051,4481.1,4480.9,0.40165]
[1756400530315,3.2078,4481.2,4480.3,3.2078]
[1756400530316,1.82861,4481.0,4480.3,3.2078]
[1756400530512,0.22351,4480.4,4480.3,3.2078]
[1756400530715,1.82861,4480.4,4480.3,3.2078]
[1756400530912,3.2078,4481.2,4479.6,0.27363963]
[1756400531117,3.2078,4481.2,4479.4,0.8578]
[1756400531320,1.6051,4481.1,4480.4,0.40169]
[1756400531521,1.6051,4481.1,4479.5,1.00445]
[1756400531522,1.6051,4480.6,4479.7,0.40175]
[1756400531720,1.6051,4480.6,4480.0,0.40173]
[1756400531921,3.2078,4480.7,4480.0,0.40173]
[1756400532115,1.6051,4480.6,4479.4,0.40178]
[1756400532322,0.22351,4479.9,4479.3,41.6484]
[1756400532626,1.6051,4479.7,4479.1,32.57081]
[1756400532824,0.40174,4480.0,4479.1,32.169]
[1756400533122,1.00419,4480.7,4479.1,32.169]
[1756400533123,1.6051,4479.3,4479.1,32.169]
[1756400533417,1.6051,4479.4,4479.3,0.40179]
[1756400533624,1.6051,4480.1,4479.1,32.169]
[1756400533824,0.40173,4480.0,4479.1,32.169]
[1756400534026,0.22351,4479.3,4479.1,32.169]
[1756400534227,1.6051,4480.1,4479.1,32.169]
[1756400534427,1.82861,4479.8,4479.6,0.40176]
[1756400534928,1.6051,4480.1,4479.4,3.2078]
[1756400535224,1.6051,4480.1,4479.5,0.40177]
[1756400535427,1.6051,4480.1,4479.1,32.169]
[1756400535428,1.6051,4479.9,4479.1,32.169]
[1756400535626,0.22351,4479.2,4479.1,32.169]
[1756400535821,1.82861,4479.2,4478.2,3.2078]
[1756400536022,1.6051,4478.7,4478.5,0.40186]
[1756400536219,1.6051,4478.7,4478.6,0.40185]
[1756400537123,1.6051,4478.7,4478.2,3.2078]
[1756400537124,1.6051,4478.7,4478.4,0.40187]
[1756400537322,1.6051,4479.2,4478.6,0.40185]
[1756400537522,0.22351,4478.7,4478.6,0.40185]
[1756400537829,3.2078,4479.4,4479.0,0.40181]
[1756400538024,1.6051,4479.3,4479.1,0.40181]
[1756400538224,1.6051,4479.2,4479.1,0.40181]
[1756400538425,0.22351,4479.3,4479.2,0.40179]
[1756400538728,3.2078,4479.4,4478.3,0.8484]
[1756400538931,1.6051,4479.3,4478.3,0.8484]
[1756400539132,1.6051,4479.0,4478.7,0.40184]
[1756400539333,1.6051,4478.9,4478.7,0.40184]
[1756400539523,3.2078,4479.4,4478.8,0.40183]
[1756400539724,3.2078,4479.4,4479.2,0.4018]
[1756400539927,0.22351,4479.4,4479.2,1.2502]
[1756400540127,1.6051,4479.7,4479.3,0.40179]
[1756400540335,1.6051,4479.8,4478.7,0.8484]
[1756400540529,1.6051,4479.8,4479.2,0.4018]
[1756400540721,1.6051,4479.3,4479.2,0.4018]
[1756400540926,4.8129,4479.9,4479.1,0.8484]
[1756400541127,0.22351,4479.7,4479.3,1.00449]
[1756400541328,0.22351,4479.7,4479.4,0.8484]
[1756400541627,1.6051,4480.3,4479.5,0.8484]
[1756400541823,0.22351,4480.0,4479.9,0.40174]
[1756400542027,1.82861,4480.0,4479.9,0.40174]
[1756400542228,3.2078,4480.4,4480.3,0.4017]
[1756400542433,4.8129,4480.4,4480.3,0.4017]
[1756400542822,1.6051,4480.4,4480.3,0.4017]
[1756400543329,3.2078,4480.9,4480.3,0.4017]
[1756400543524,1.6051,4480.3,4479.3,1.00449]
[1756400543724,1.6051,4480.3,4479.9,0.40174]
[1756400543939,3.2078,4480.4,4479.9,0.40174]
[1756400543940,4.8129,4480.0,4479.9,0.40174]
[1756400544139,1.6051,4480.0,4479.9,0.40174]
[1756400544340,1.82861,4480.0,4479.9,0.40174]
[1756400544539,1.6051,4480.0,4479.9,0.40174]
[1756400544738,1.82861,4480.0,4479.9,0.40174]
[1756400544934,0.22351,4480.0,4478.8,1.00459]
[1756400545139,1.6051,4479.2,4479.1,0.40181]
[1756400545644,1.6051,4480.0,4479.7,0.40176]
[1756400545839,1.6051,4480.0,4479.6,0.40176]
[1756400546040,1.82861,4479.3,4479.1,0.40181]
[1756400546442,1.6051,4480.0,4479.6,0.40176]
[1756400546635,3.2078,4480.1,4479.7,0.40175]
[1756400546839,1.82861,4479.3,4479.2,0.4018]
[1756400547040,1.82861,4479.3,4478.7,1.00463]
[1756400547344,1.6051,4479.5,4479.0,0.40182]
[1756400547644,0.40178,4479.5,4478.4,3.2078]
[1756400547847,1.6051,4479.5,4478.8,0.40183]
[1756400548037,3.60957,4479.6,4479.1,0.40181]
[1756400548038,1.6051,4479.4,4479.1,0.40181]
[1756400548239,3.2078,4479.6,4479.1,0.40181]
[1756400548449,0.22351,4479.2,4479.1,0.40181]
[1756400548739,1.6051,4479.5,4479.4,0.40178]
[1756400549347,1.82861,4479.5,4479.4,0.40178]
[1756400549552,1.6051,4479.3,4478.8,0.40184]
[1756400549840,0.22351,4478.4,4478.3,3.2078]
[1756400550047,0.22351,4478.4,4477.6,32.158]
[1756400550048,1.82861,4478.4,4477.9,0.40192]
[1756400550237,1.00446,4479.5,4477.8,3.60972]
[1756400550238,1.6051,4478.6,4477.8,3.60972]
[1756400550441,1.82861,4477.9,4477.8,3.60972]
[1756400550637,1.82861,4477.9,4477.8,3.2078]
[1756400550839,1.6051,4477.9,4477.6,32.158]
[1756400551042,1.82861,4477.7,4477.6,32.158]
[1756400551436,1.6051,4477.7,4477.6,32.158]
[1756400552244,1.6051,4478.0,4476.8,0.8484]
[1756400552448,1.00461,4478.8,4476.8,0.8484]
[1756400552449,3.43131,4477.5,4476.8,0.8484]
[1756400552947,1.00461,4478.8,4476.6,3.2078]
[1756400552948,1.6051,4477.3,4476.6,3.2078]
[1756400553145,3.2078,4477.4,4476.7,0.40202]
[1756400553447,1.6051,4476.7,4476.6,3.60983]
[1756400553836,1.6051,4476.7,4476.4,0.40205]
[1756400554037,0.22351,4476.5,4476.1,35.76488]
[1756400554238,0.22351,4476.5,4476.1,35.3628]
[1756400554741,1.6051,4476.1,4475.2,1.18314187]
[1756400554940,1.6051,4476.1,4475.5,0.40213]
[1756400555140,3.2078,4476.2,4475.3,0.8484]
[1756400555443,1.82861,4476.1,4476.0,0.40209]
[1756400555747,0.22351,4475.9,4475.2,0.8484]
[1756400555947,3.60988,4476.2,4475.1,3.2078]
[1756400556148,0.22351,4475.5,4475.1,3.2078]
[1756400556441,0.22351,4475.2,4474.6,4.0055]
[1756400556636,0.22351,4475.3,4474.8,1.8032]
[1756400556838,3.2078,4475.7,4475.2,0.40216]
[1756400557041,3.2078,4475.7,4474.8,1.0055]
[1756400557240,1.7155,4475.6,4475.3,1.19985]
[1756400557440,1.7155,4475.5,4475.4,0.40214]
[1756400557640,3.2078,4475.7,4475.5,0.40213]
[1756400557837,1.7155,4475.5,4475.3,0.40215]
[1756400558041,1.7155,4475.1,4474.6,3.2078]
[1756400558343,0.22351,4475.5,4475.2,0.40216]
[1756400558546,1.93901,4475.5,4475.3,0.40215]
[1756400558749,1.93901,4475.5,4475.3,1.19985]
[1756400559042,3.2078,4475.7,4475.6,0.7977]
[1756400559548,3.2078,4476.3,4475.7,0.40211]
[1756400559745,1.7155,4475.8,4475.7,0.40211]
[1756400559951,1.7155,4475.8,4475.3,3.2078]
[1756400559952,1.7155,4475.7,4475.3,3.2078]
[1756400560142,3.2078,4476.3,4475.3,3.60995]
[1756400560341,1.93901,4475.4,4475.3,3.2078]
[1756400560751,1.7155,4475.7,4475.2,0.40215]
[1756400560947,1.7155,4475.2,4474.8,3.2078]
[1756400561154,1.7155,4475.4,4475.3,0.40215]
[1756400562046,1.7155,4476.1,4476.0,0.40209]
[1756400562253,1.93901,4476.1,4476.0,0.40209]
[1756400562650,0.22351,4476.1,4476.0,1.19979]
[1756400562854,1.7155,4476.6,4476.5,0.40204]
[1756400563045,1.7155,4477.1,4477.0,0.402]
[1756400563250,3.2078,4477.2,4477.0,1.1997]
[1756400563548,1.7155,4477.6,4476.4,1.00512]
[1756400563748,1.7155,4477.6,4474.5,10.38013213]
[1756400563749,1.7155,4477.6,4477.3,0.40197]
[1756400563957,1.7155,4478.0,4477.8,0.40192]
[1756400564150,3.2078,4478.1,4477.9,0.40191]
[1756400564453,1.7155,4478.0,4477.9,0.40191]
[1756400564759,1.7155,4479.0,4477.9,1.0048]
[1756400564960,4.9233,4479.1,4478.8,0.40183]
[1756400565253,1.7155,4479.0,4478.9,0.40182]
[1756400565747,1.93901,4479.0,4478.9,0.40182]
[1756400566551,5.93901,4479.0,4477.7,4.21264]
[1756400566749,1.93901,4477.9,4477.8,0.40193]
[1756400566952,1.7155,4477.9,4477.8,0.40193]
[1756400567251,3.2078,4479.1,4478.7,0.40184]
[1756400567443,1.7155,4478.8,4478.5,0.40186]
[1756400567647,3.2078,4479.1,4478.8,0.40183]
[1756400567847,1.7155,4478.9,4478.8,0.40183]
[1756400568053,1.93901,4478.9,4478.8,0.40183]
[1756400568256,1.7155,4478.9,4478.8,0.40183]
[1756400568850,3.2078,4479.1,4479.0,1.19952]
[1756400569057,3.2078,4479.7,4479.5,1.19947]
[1756400569258,4.9233,4480.3,4480.1,0.40171]
[1756400569451,1.7155,4480.2,4480.1,0.40171]
[1756400569659,1.93901,4480.2,4480.1,0.40171]
[1756400569848,1.7155,4480.2,4480.1,0.40171]
[1756400571160,3.2078,4480.9,4480.3,0.40169]
[1756400571460,3.2078,4480.9,4479.6,0.7977]
[1756400571461,1.93901,4480.5,4480.4,0.40169]
[1756400572055,1.7155,4480.4,4479.8,0.40174]
[1756400572256,1.7155,4480.3,4479.6,0.7977]
[1756400572456,3.2078,4480.4,4479.6,0.7977]
[1756400572457,1.7155,4480.1,4480.0,0.40172]
[1756400572658,1.7155,4480.1,4479.4,4.21226]
[1756400572858,0.22351,4479.9,4479.5,0.40177]
[1756400573160,1.7155,4479.4,4479.1,0.4018]
[1756400573359,1.7155,4479.4,4478.1,1.3320988]
[1756400573360,1.7155,4479.2,4478.2,35.3748]
[1756400573560,1.7155,4478.5,4478.2,35.3748]
[1756400573864,1.93901,4478.6,4478.4,0.40186]
[1756400574057,1.7155,4478.6,4478.4,0.40186]
[1756400574459,1.7155,4479.2,4478.4,0.40186]
[1756400574761,1.7155,4478.5,4478.3,0.40188]
[1756400574957,0.22351,4478.6,4478.3,0.40188]
[1756400575162,1.7155,4479.0,4478.3,0.40188]
[1756400575358,1.7155,4478.5,4478.3,0.40188]
[1756400576165,1.7155,4479.2,4478.7,0.40184]
[1756400576358,1.7155,4478.8,4478.6,0.40184]
[1756400576559,1.7155,4478.8,4478.6,1.19954]
[1756400576760,3.2078,4479.3,4478.3,0.7977]
[1756400576962,3.2078,4479.3,4479.1,0.4018]
[1756400577256,1.7155,4479.2,4479.1,0.4018]
[1756400577664,1.7155,4479.5,4479.3,0.40178]
[1756400577961,1.7155,4479.4,4479.3,0.40178]
[1756400579165,4.9233,4480.1,4479.9,1.19943]
[1756400579567,4.9233,4480.1,4479.9,0.40173]
[1756400579768,4.9233,4480.1,4480.0,0.7977]
[1756400579769,3.2078,4480.1,4480.0,0.7977]
[1756400580166,3.2078,4480.1,4479.9,0.40173]
[1756400580368,1.7155,4480.0,4479.9,0.40173]
[1756400581161,1.7155,4480.0,4479.7,0.40175]
[1756400581363,1.7155,4480.0,4479.3,40.8]
[1756400581568,2.11723,4480.0,4479.2,3.6096]
[1756400581864,0.22351,4479.5,4479.2,3.2078]
[1756400582068,1.7155,4479.4,4479.2,3.2078]
[1756400582268,1.93901,4479.3,4479.2,3.2078]
[1756400582458,3.2078,4480.1,4479.2,3.2078]
[1756400582765,0.40175,4479.8,4479.2,3.2078]
[1756400582957,0.40179,4479.3,4478.5,3.60966]
[1756400583164,1.7155,4479.1,4478.5,3.2078]
[1756400583357,1.7155,4478.7,4478.6,0.40185]
[1756400583566,2.1173,4479.2,4478.5,3.2078]
[1756400583761,1.93901,4478.6,4478.5,3.2078]
[1756400584262,1.7155,4479.4,4478.5,8.0055]
[1756400584463,1.7155,4480.0,4479.2,0.7977]
[1756400584766,1.7155,4479.8,4479.0,4.0055]
[1756400584957,0.22351,4479.1,4478.9,0.40182]
[1756400585164,1.7155,4479.2,4478.4,0.7977]
[1756400585470,1.7155,4479.0,4478.4,0.40186]
[1756400585767,0.4018,4479.2,4478.5,0.40186]
[1756400585963,1.81901,4478.6,4478.5,0.40186]
[1756400586163,1.5955,4478.6,4478.5,0.40186]
[1756400586363,0.22351,4478.6,4478.3,3.2078]
[1756400586563,3.2078,4479.3,4478.3,3.2078]
[1756400586564,0.40186,4478.5,4478.3,3.2078]
[1756400586765,1.5955,4477.8,4477.1,4.34768]
[1756400586959,0.22351,4478.4,4477.1,4.34768]
[1756400586960,0.22351,4477.4,4477.1,3.2078]
[1756400587162,0.40196,4477.4,4476.6,36.1007]
[1756400587367,3.2078,4477.0,4476.6,32.155]
[1756400587562,1.81901,4476.8,4476.6,32.155]
[1756400587765,1.5955,4476.7,4476.6,32.155]
[1756400587959,1.81901,4476.7,4476.6,32.155]
[1756400588268,1.5955,4476.7,4476.6,32.155]
[1756400589063,3.6098,4477.0,4476.0,3.2078]
[1756400589064,3.2078,4477.0,4476.0,3.2078]
[1756400589259,0.22351,4476.1,4476.0,3.2078]
[1756400589568,1.81901,4476.1,4476.0,3.2078]
[1756400590365,1.5955,4476.1,4476.0,3.2078]
[1756400590969,1.81901,4476.1,4475.3,40.8]
[1756400591164,1.81901,4476.1,4475.1,33.29706]
[1756400591165,0.22351,4475.6,4475.1,33.29706]
[1756400591468,1.00498,4477.1,4475.1,33.29706]
[1756400591469,0.22351,4475.5,4475.1,32.157]
[1756400591764,0.22351,4475.2,4475.1,32.157]
[1756400592163,3.2078,4475.9,4475.0,3.2078]
[1756400592365,0.22351,4475.1,4474.5,40.8]
[1756400592572,0.22351,4474.8,4474.3,3.2078]
[1756400592777,0.40217,4475.1,4474.3,3.2078]
[1756400593064,0.22351,4474.7,4474.3,3.2078]
[1756400593262,0.22351,4474.6,4474.3,3.2078]
[1756400593465,3.2078,4475.3,4474.3,3.2078]
[1756400593667,3.2078,4476.0,4475.6,0.40212]
[1756400593963,3.2078,4476.0,4475.2,1.00539]
[1756400594160,3.2078,4476.0,4475.8,0.4021]
[1756400594362,3.2078,4476.0,4474.9,0.22344]
[1756400594363,3.2078,4477.0,4476.8,0.40201]
[1756400594773,3.2078,4477.6,4477.5,0.40195]
[1756400594973,3.2078,4477.6,4477.1,0.40198]
[1756400595270,3.2078,4477.6,4476.4,3.2078]
[1756400595869,0.22351,4476.9,4476.4,3.2078]
[1756400596064,0.22351,4476.9,4476.6,0.40202]
[1756400596264,0.22351,4476.8,4476.4,3.2078]
[1756400596460,0.22351,4476.8,4475.2,33.17138]
[1756400596461,0.22351,4476.7,4476.1,0.40207]
[1756400596865,0.22351,4476.4,4475.9,3.2078]
[1756400597066,0.40203,4476.7,4475.9,3.2078]
[1756400597265,0.22351,4476.1,4475.9,3.2078]
[1756400597460,0.22351,4476.1,4475.9,3.9358]
[1756400597871,0.22351,4476.1,4475.9,3.2078]
[1756400598167,0.22351,4476.0,4475.5,0.40212]
[1756400598370,0.22351,4476.0,4475.4,3.2078]
[1756400598371,0.22351,4476.0,4475.9,0.40208]
[1756400598767,0.22351,4476.0,4475.8,0.728]
[1756400599167,0.22351,4475.9,4475.4,3.2078]
[1756400599367,3.2078,4476.4,4475.9,0.40209]
[1756400599567,3.2078,4476.4,4475.6,0.728]
[1756400599774,3.2078,4476.4,4475.4,3.2078]
[1756400600071,0.40204,4476.6,4475.5,1.13012]
[1756400600275,0.22351,4476.2,4475.5,0.728]
[1756400600776,0.22351,4476.1,4475.5,0.728]
[1756400601364,3.2078,4476.6,4475.5,0.728]
[1756400601568,0.22351,4476.1,4475.6,0.40211]
[1756400601774,0.22351,4476.1,4475.8,0.4021]
[1756400601967,0.22351,4476.1,4475.8,0.728]
[1756400602168,0.22351,4476.1,4475.7,1.13011]
[1756400602470,0.22351,4476.0,4475.8,0.728]
[1756400602669,0.22351,4476.0,4475.8,1.1301]
[1756400602874,3.2078,4476.6,4476.0,0.40208]
[1756400603068,0.22351,4476.0,4475.9,0.728]
[1756400603375,0.62559,4476.1,4475.9,0.728]
[1756400603572,0.22351,4476.0,4475.4,3.2078]
[1756400603770,0.22351,4476.0,4475.4,3.60993]
[1756400604475,0.22351,4476.0,4475.4,3.2078]
[1756400604669,0.22351,4476.0,4475.4,3.60993]
[1756400604870,3.2078,4475.6,4475.3,40.8]
[1756400605068,3.2078,4475.6,4475.2,32.894]
[1756400605265,3.2078,4475.6,4475.3,0.728]
[1756400605675,3.43131,4475.6,4475.3,0.728]
[1756400606375,3.43131,4475.6,4475.2,32.166]
[1756400606975,3.43131,4475.6,4475.3,0.40214]
[1756400607377,0.22351,4475.5,4475.3,1.13014]
[1756400607572,3.2078,4475.6,4475.4,0.40213]
[1756400607774,0.22351,4475.5,4475.4,1.13013]
[1756400607971,0.22351,4475.5,4475.2,32.894]
[1756400608174,3.2078,4475.6,4475.2,32.166]
[1756400608370,0.22351,4475.5,4475.2,32.166]
[1756400608570,0.22351,4475.5,4475.3,0.728]
[1756400608772,3.2078,4475.6,4475.4,0.40213]
[1756400608967,3.2078,4475.6,4475.5,0.728]
[1756400609670,3.2078,4476.1,4476.0,0.40208]
[1756400609874,3.2078,4476.6,4476.0,0.40208]
[1756400610074,0.22351,4476.1,4476.0,0.40208]
[1756400610274,3.2078,4476.6,4475.7,0.728]
[1756400610475,3.2078,4476.6,4476.0,0.40208]
[1756400610476,0.22351,4476.3,4476.0,0.40208]
[1756400610668,0.22351,4476.2,4476.0,0.40208]
[1756400611177,3.2078,4476.6,4475.8,0.40209]
[1756400611376,0.22351,4476.2,4475.9,0.40209]
[1756400611577,0.22351,4476.2,4476.0,0.40208]
[1756400611772,0.22351,4476.1,4475.6,0.40212]
[1756400611976,0.22351,4475.7,4475.4,0.40213]
[1756400612179,0.40207,4476.2,4475.5,0.40213]
[1756400612376,3.2078,4476.6,4475.4,0.728]
[1756400612681,3.2078,4476.6,4475.3,1.00536]
[1756400612682,3.2078,4476.6,4475.7,3.2078]
[1756400612974,3.2078,4476.6,4476.5,0.728]
[1756400613173,1.00464,4478.6,4477.1,0.40198]
[1756400613174,3.2078,4477.3,4477.1,0.40198]
[1756400613573,0.22351,4477.2,4477.1,0.40198]
[1756400613876,3.2078,4478.3,4478.1,0.40189]
[1756400614082,0.22351,4478.1,4477.3,0.728]
[1756400614276,3.2078,4478.3,4478.1,0.40189]
[1756400614476,3.2078,4478.8,4478.6,0.40184]
[1756400614876,3.2078,4479.3,4478.6,0.40184]